fUSD/lending_fUSD_20240301
["ID","MTS","AMOUNT","RATE_DAILY","PERIOD"]
[315906624,1709261445023,-500.0,0.00021917,2]
[315906625,1709261445032,-500.0,0.00021917,2]
[315906626,1709261445042,-718.11,0.00021917,2]
[315906627,1709261445051,-500.0,0.00021917,2]
[315906628,1709261445061,-500.0,0.00021917,2]
[315906629,1709261445070,-524.6,0.00021917,2]
[315906630,1709261445079,-500.0,0.00021917,2]
[315906631,1709261445088,-500.0,0.00021917,2]
[315906632,1709261445097,-500.0,0.00021917,2]
[315906633,1709261445106,-500.0,0.00021917,2]
[315906634,1709261445115,-500.0,0.00021917,2]
[315906635,1709261445124,-518.30053849,0.00021917,2]
[315906636,1709261445133,-868.27,0.00021917,2]
[315906637,1709261445142,-431.64448403,0.00021917,2]
[315906638,1709261445151,-616.3,0.00021918,2]
[315906639,1709261445160,-159.68,0.00021938,2]
[315906640,1709261445169,-15295.76139093,0.00022,2]
[315906642,1709261445284,-5879.44011589,0.00022,2]
[315906643,1709261445294,-155.0,0.00022,2]
[315906644,1709261445303,-616.3,0.00022033,2]
[315906645,1709261445312,-159.68,0.00022063,2]
[315906647,1709261445323,-8263.75536209,0.000221,2]
[315906648,1709261445333,-645.49,0.00022126,2]
[315906651,1709261445342,-651.85,0.00022126,2]
[315906653,1709261445351,-1254.05,0.00022126,2]
[315906655,1709261445361,-500.0,0.00022126,2]
[315906657,1709261445370,-237.36921355,0.00022126,2]
[315906800,1709261982923,151.0,0.00023658,120]
[315906803,1709262268110,151.0,0.00023774,120]
[315906811,1709262631443,-363.90797229,0.00012999,2]
[315906813,1709262631452,-161.32042426,0.00013,2]
[315906815,1709262631464,-70.67957574,0.00013,2]
[315906817,1709262631473,-429.65353478,0.00013049,2]
[315906818,1709262631485,-344.31495805,0.00013049,2]
[315906819,1709262631494,-59.29661676,0.0001305,2]
[315906820,1709262631573,-154.39545776,0.0001305,2]
[315906821,1709262631582,-446.01811978,0.000137,2]
[315906822,1709262631591,-64.78847052,0.000142,2]
[315906823,1709262631603,-609.86344662,0.000142,2]
[315906824,1709262631614,-908.3960103,0.000142,2]
[315906825,1709262631626,-994.00963311,0.000142,2]
[315906826,1709262631635,-218.86,0.00017496,2]
[315906827,1709262631644,-160.44468332,0.00018212,2]
[315906828,1709262631653,-544.84,0.00018949,2]
[315906829,1709262631663,-500.0,0.00019,2]
[315906830,1709262631672,-22433.00955388,0.00019042,2]
[315906831,1709262631799,-1033.41389252,0.00019042,2]
[315906857,1709262637510,-500.0,0.00018,2]
[315906858,1709262637522,-861.97104713,0.00019042,2]
[315906859,1709262637575,-752.61079415,0.00019042,2]
[315906860,1709262637697,-1880.6330125,0.00019042,2]
[315906861,1709262637756,-556.45656619,0.00019042,2]
[315906862,1709262637770,-827.91845062,0.00019042,2]
[315906881,1709262639986,-300.8725,0.00019042,2]
[315906882,1709262639998,-6289.50176035,0.00019042,2]
[315906883,1709262640008,-23900.0,0.00019043,2]
[315906884,1709262640018,-150.99,0.00019043,2]
[315906885,1709262640028,-150.99,0.00019043,2]
[315906886,1709262640037,-1588.0,0.00019212,2]
[315906887,1709262640047,-422.36,0.00019283,2]
[315906888,1709262640057,-200.0,0.00019398,2]
[315906889,1709262640066,-159.68,0.00019418,2]
[315906890,1709262640076,-250.0,0.00019502,2]
[315906891,1709262640086,-159.68,0.00019671,2]
[315906892,1709262640096,-218.86,0.0001976,2]
[315906893,1709262640105,-150.0,0.00019899,2]
[315906894,1709262640114,-1729.35832319,0.000199,2]
[315906895,1709262640124,-314.57627451,0.000199,2]
[315906896,1709262640133,-159.68,0.00019924,2]
[315906897,1709262640142,-2750.0,0.0002,3]
[315906898,1709262640151,-3678.03821112,0.0002,2]
[315906899,1709262640161,-42546.7264199,0.0002,2]
[315906911,1709262643298,-1131.82356701,0.0002,2]
[315906912,1709262643908,-2629.90070629,0.0002,2]
[315906913,1709262644039,-834.41039019,0.0002,2]
[315906934,1709263831583,-363.90797229,0.00016578,2]
[315906935,1709263831592,-203.0,0.00016579,2]
[315906937,1709263831605,-196.97,0.00016607,2]
[315906938,1709263831615,-175.93,0.00018201,2]
[315906939,1709263831624,-250.0,0.00018272,2]
[315906940,1709263831634,-183.93,0.00018344,2]
[315906941,1709263831643,-56.18163059,0.00018452,2]
[315906942,1709263831655,-366.05630051,0.00018452,2]
[315906943,1709263831667,-135.8101511,0.00018452,2]
[315906944,1709263831676,-649.3199999,0.00018453,2]
[315906945,1709263831687,-150.0,0.00018453,2]
[315906946,1709263831696,-18494.46967936,0.00018454,2]
[315906947,1709263831741,-825.44838676,0.00018454,2]
[315906948,1709263831754,-2185.77181383,0.00018454,2]
[315906949,1709263831805,-300.87573959,0.00018454,2]
[315906950,1709263831819,-502.38963629,0.00018454,2]
[315906951,1709263831835,-4528.09016766,0.00018454,2]
[315906952,1709263831875,-923.58946258,0.00018454,2]
[315906953,1709263831886,-2261.33162603,0.00018454,2]
[315906954,1709263831906,-1760.91137113,0.00018454,2]
[315906955,1709263831938,-5416.96516474,0.00018454,2]
[315906956,1709263831951,-1154.08812149,0.00018454,2]
[315906957,1709263832000,-305.675465,0.00018454,2]
[315906958,1709263832013,-287.75294492,0.00018454,2]
[315906977,1709263837609,-28472.77441361,0.00018454,2]
[315906978,1709263837723,-2917.42170074,0.00018454,2]
[315906979,1709263837781,-1348.07760001,0.00018454,2]
[315906980,1709263837794,-781.27938018,0.00018454,2]
[315906981,1709263837839,-370.96436731,0.00018454,2]
[315906982,1709263837851,-4879.2320742,0.00018454,2]
[315906983,1709263837962,-252.7298291,0.00018454,2]
[315906989,1709263840750,-67741.16105547,0.00018454,2]
[315906990,1709263840760,-435.88,0.00018489,2]
[315906991,1709263840769,-159.68,0.00018537,2]
[315906992,1709263840779,-600.0,0.00018639,2]
[315906993,1709263840790,-31648.66335058,0.0001864,2]
[315906994,1709263840803,-250.0,0.0001864,2]
[315906995,1709263840827,-3037.72422676,0.0001864,2]
[315906996,1709263840837,-499.99,0.0001864,2]
[315906997,1709263840846,-180.3,0.00018677,10]
[315906998,1709263840856,-1217.61099103,0.00018828,2]
[315906999,1709263840865,-196.97,0.00018871,2]
[315907000,1709263840875,-159.08,0.00018903,2]
[315907001,1709263840885,-564.12,0.00019067,2]
[315907002,1709263840894,-1089.25,0.00019067,2]
[315907003,1709263840904,-2459.63,0.00019067,2]
[315907004,1709263840913,-211.18,0.00019067,2]
[315907005,1709263840922,-180.3,0.00019134,10]
[315907006,1709263840932,-170.81,0.00019141,2]
[315907007,1709263840942,-250.0,0.00019178,2]
[315907008,1709263840951,-500.0,0.00019178,2]
[315907009,1709263840962,-203.0,0.00019474,5]
[315907010,1709263840971,-159.68,0.00019503,2]
[315907011,1709263840980,-405.51,0.00019541,2]
[315907012,1709263840990,-180.3,0.00019592,10]
[315907013,1709263841000,-814.58,0.00019623,2]
[315907014,1709263841011,-919.92,0.00019623,2]
[315907015,1709263841021,-150.0,0.00019728,2]
[315907016,1709263841032,-2094.90786499,0.000199,2]
[315907017,1709263841042,-800.0,0.00019973,2]
[315907018,1709263841051,-1050.0,0.00019999,2]
[315907019,1709263841060,-155.35098602,0.00019999,2]
[315907020,1709263841070,-3988.44479035,0.00019999,2]
[315907021,1709263841081,-200000.0,0.00019999,2]
[315907023,1709263841091,-344771.79893236,0.0002,2]
[315907025,1709263841151,-534.17987209,0.0002,2]
[315907026,1709263841164,-1245.01514611,0.0002,2]
[315907027,1709263841177,-4505.45753105,0.0002,2]
[315907031,1709263842708,-293.31210402,0.0002,2]
[315907032,1709263842720,-1020.5000005,0.0002,2]
[315907033,1709263842732,-835.04991627,0.0002,2]
[315907034,1709263842757,-11147.29962502,0.0002,2]
[315907035,1709263842778,-537.57139941,0.0002,2]
[315907036,1709263842791,-819.54223375,0.0002,2]
[315907037,1709263842804,-320.26401847,0.0002,2]
[315907038,1709263842871,-11139.050011,0.0002,2]
[315907039,1709263842932,-493.84507405,0.0002,2]
[315907040,1709263842944,-651.06340159,0.0002,2]
[315907041,1709263842988,-1271.75194017,0.0002,2]
[315907042,1709263842999,-848.89,0.0002,2]
[315907043,1709263843011,-1190.88001,0.0002,2]
[315907044,1709263843047,-33751.33833848,0.0002,2]
[315907047,1709263845601,-6895.33541699,0.0002,2]
[315907050,1709263845613,-495.22347624,0.0002,2]
[315907058,1709263845675,-1616.62965696,0.0002,2]
[315907059,1709263845687,-3160.5631174,0.0002,2]
[315907060,1709263845742,-507.30573655,0.0002,2]
[315907061,1709263845832,-3022.83665957,0.0002,2]
[315907062,1709263845841,-2000.0,0.0002,2]
[315907063,1709263845851,-2000.0,0.0002,2]
[315907064,1709263845860,-2000.0,0.0002,2]
[315907065,1709263845869,-2000.0,0.0002,2]
[315907066,1709263845878,-2000.0,0.0002,2]
[315907067,1709263845887,-2000.0,0.0002,2]
[315907068,1709263845896,-2000.0,0.0002,2]
[315907069,1709263845905,-2000.0,0.0002,2]
[315907070,1709263845915,-2000.0,0.0002,2]
[315907071,1709263845924,-2000.0,0.0002,2]
[315907072,1709263845933,-2000.0,0.0002,2]
[315907073,1709263845943,-2000.0,0.0002,2]
[315907074,1709263845952,-2000.0,0.0002,2]
[315907075,1709263845961,-2000.0,0.0002,2]
[315907076,1709263845970,-2000.0,0.0002,2]
[315907077,1709263845979,-2000.0,0.0002,2]
[315907078,1709263845989,-2000.0,0.0002,2]
[315907079,1709263845998,-2000.0,0.0002,2]
[315907080,1709263846007,-2000.0,0.0002,2]
[315907081,1709263846017,-2000.0,0.0002,2]
[315907082,1709263846026,-624.40460621,0.0002,2]
[315907083,1709263846037,-1375.59539379,0.0002,2]
[315907084,1709263846046,-2000.0,0.0002,2]
[315907085,1709263846056,-506.82506845,0.0002,2]
[315907086,1709263846067,-1493.17493155,0.0002,2]
[315907087,1709263846076,-2000.0,0.0002,2]
[315907088,1709263846085,-2000.0,0.0002,2]
[315907089,1709263846094,-2000.0,0.0002,2]
[315907090,1709263846103,-763.40792881,0.0002,2]
[315907091,1709263846123,-1236.59207119,0.0002,2]
[315907092,1709263846133,-2000.0,0.0002,2]
[315907093,1709263846143,-2000.0,0.0002,2]
[315907094,1709263846153,-2000.0,0.0002,2]
[315907095,1709263846163,-2000.0,0.0002,2]
[315907096,1709263846172,-2000.0,0.0002,2]
[315907097,1709263846181,-2000.0,0.0002,2]
[315907098,1709263846191,-2000.0,0.0002,2]
[315907099,1709263846200,-2000.0,0.0002,2]
[315907100,1709263846209,-2000.0,0.0002,2]
[315907101,1709263846219,-1668.41822825,0.0002,2]
[315907102,1709263846231,-331.58177175,0.0002,2]
[315907103,1709263846242,-2000.0,0.0002,2]
[315907104,1709263846251,-1042.55204694,0.0002,3]
[315907105,1709263846263,-1707.44795306,0.0002,3]
[315907106,1709263846272,-11.23089516,0.0002,2]
[315907107,1709263847722,-289.63799347,0.0002,2]
[315907108,1709263847733,-578.97664646,0.0002,2]
[315907109,1709263847745,-120.15446491,0.0002,2]
[315907110,1709263847755,-570.1773358,0.0002,3]
[315907111,1709263847764,-180.3,0.00020049,10]
[315907112,1709263847773,-919.92,0.00020082,2]
[315907113,1709263847782,-407.29,0.00020082,2]
[315907114,1709263847792,-2094.90786495,0.0002047,2]
[315907115,1709263847801,-1853.12,0.00020482,2]
[315907116,1709263847811,-413.5,0.00020482,2]
[315907117,1709263847820,-180.3,0.00020507,10]
[315907118,1709263847829,-2143.13,0.00020548,2]
[315907119,1709263847838,-2000.0,0.00020548,2]
[315907120,1709263847847,-1000.0,0.00020667,2]
[315907121,1709263847856,-435.88,0.000208,2]
[315907122,1709263847865,-188.76,0.00020935,2]
[315907123,1709263847875,-197.00988635,0.00020939,2]
[315907124,1709263847884,-1470.70147462,0.00021,2]
[315907125,1709263847913,-7228.38290901,0.00021,2]
[315907126,1709263847922,-2094.90786495,0.00021039,2]
[315907127,1709263847931,-249.3,0.00021096,2]
[315907128,1709263847940,-196.97,0.00021135,2]
[315907129,1709263847949,-1000.0,0.00021333,2]
[315907130,1709263847959,-551.27405853,0.0002144,6]
[315907131,1709263847981,-708.40080193,0.0002144,6]
[315907132,1709264110055,-151.0,0.00025256,120]
[315907133,1709264110106,-151.0,0.00025771,30]
[315907134,1709264110219,-10115.17,0.000275,30]
[315907135,1709264110267,-1578.28559123,0.00028219,30]
[315907136,1709264110305,-258685.95166844,0.000289,30]
[315907137,1709264110334,-2786.60139996,0.0002955,30]
[315907138,1709264110372,-9937.21338823,0.0003,30]
[315907139,1709264110392,-567.18364401,0.0003,30]
[315907140,1709264124334,567.18364401,0.0003,30]
[315907141,1709264127267,375.23068721,0.00028219,30]
[315907142,1709264128136,258685.95166844,0.000289,30]
[315907143,1709264140334,567.18364401,0.0003,30]
[315907144,1709264148132,258685.95166844,0.000289,30]
[315907145,1709264156337,567.18364401,0.0003,30]
[315907146,1709264164064,196578.90935201,0.000289,30]
[315907157,1709265032007,-423.02975116,0.00018142,2]
[315907158,1709265032017,-314.39232908,0.00018143,2]
[315907159,1709265032028,-178.37,0.00018145,2]
[315907160,1709265032037,-203.0,0.00019368,2]
[315907161,1709265032047,-150.0,0.00019973,2]
[315907162,1709265032057,-371.18283949,0.00020063,2]
[315907163,1709265032069,-128.81716051,0.00020063,2]
[315907164,1709265032078,-159.82,0.00020063,10]
[315907165,1709265032088,-211.18,0.00020063,2]
[315907166,1709265032097,-894.37338348,0.00020256,2]
[315907167,1709265032110,-105.62661652,0.00020256,2]
[315907168,1709265032119,-281.88439039,0.0002028,2]
[315907169,1709265032136,-444.27560961,0.0002028,2]
[315907170,1709265032145,-163.00747495,0.0002029,2]
[315907171,1709265032154,-170.81,0.0002039,2]
[315907172,1709265032164,-178.37,0.00020409,2]
[315907173,1709265032173,-628.12349577,0.00020548,7]
[315907174,1709265034285,-248.72106423,0.00020548,7]
[315907175,1709265034295,-159.82,0.00020554,10]
[315907176,1709265034305,-155.17,0.00020565,2]
[315907177,1709265034315,-163.00747495,0.0002065,2]
[315907178,1709265034325,-365.79798734,0.00020951,2]
[315907179,1709265034447,-1129.22127489,0.00020951,2]
[315907180,1709265034485,-516.09812629,0.00020951,2]
[315907181,1709265034497,-1012.07261148,0.00020951,2]
[315907182,1709265034508,-187.89106439,0.00020999,2]
[315907183,1709265034518,-163.00747495,0.0002101,2]
[315907184,1709265034531,-159.82,0.00021046,10]
[315907185,1709265034541,-150.0,0.00021234,2]
[315907186,1709265034551,-300.0,0.00021234,2]
[315907187,1709265034565,-1448.51370819,0.00021335,2]
[315907188,1709265034578,-4475.38676798,0.00021335,2]
[315907189,1709265034628,-579.93156402,0.00021335,2]
[315907195,1709265037966,-1122.94407473,0.00021335,2]
[315907196,1709265038100,-3783.29395424,0.00021335,2]
[315907197,1709265038113,-41902.67263084,0.00021335,2]
[315907198,1709265038125,-163.00747495,0.00021371,2]
[315907199,1709265038134,-1045.15185653,0.0002144,6]
[315907200,1709265038150,-135058.36820969,0.00021444,6]
[315907204,1709265040983,-2749.14499165,0.00021444,6]
[315907205,1709265041175,-543.62108514,0.00021444,6]
[315907218,1709265042889,-3037.27747295,0.00021444,6]
[315907219,1709265042899,-245.31444715,0.00021447,6]
[315907220,1709265042908,-2701.49537182,0.00021447,6]
[315907221,1709265043117,-2375.02281236,0.00021447,6]
[315907222,1709265043126,-2164.97718764,0.00021448,6]
[315907232,1709265596676,151.0,0.00024596,120]
[315907233,1709265995038,173.94903733,0.00022,30]
[315907236,1709266233983,-425.77980292,0.00014064,2]
[315907237,1709266233995,-900.90785435,0.00014064,2]
[315907238,1709266234010,-412.77292295,0.00014064,2]
[315907239,1709266234066,-2437.5708778,0.00014064,2]
[315907240,1709266234075,-1057.72421204,0.00014065,2]
[315907241,1709266234084,-423.02975116,0.00014065,2]
[315907242,1709266234093,-163.00747495,0.00014081,2]
[315907243,1709266234102,-994.00963311,0.000142,2]
[315907244,1709266234112,-34936.38757734,0.00015367,2]
[315907245,1709266234120,-203.0,0.00015368,2]
[315907246,1709266234130,-202.0,0.00015368,2]
[315907247,1709266234139,-150.0,0.00016366,2]
[315907248,1709266234148,-160.53,0.00017929,2]
[315907249,1709266234157,-203.0,0.00018802,6]
[315907250,1709266234167,-484.1,0.00019826,2]
[315907251,1709266234176,-159.82,0.00019854,10]
[315907252,1709266234185,-2750.0,0.0002,3]
[315907253,1709266234195,-800.0,0.00020023,2]
[315907254,1709266234205,-699.77088876,0.00020061,2]
[315907255,1709266234215,-160.53,0.00020192,2]
[315907256,1709266234224,-181.56,0.00020285,2]
[315907257,1709266234233,-200.0,0.00020329,2]
[315907258,1709266234242,-159.82,0.0002034,10]
[315907259,1709266234251,-578.0,0.00020461,2]
[315907260,1709266234260,-5732.87271226,0.00020805,2]
[315907261,1709266234269,-159.82,0.00020826,10]
[315907262,1709266234278,-24091.16963655,0.000209,2]
[315907263,1709266234288,-18930.52,0.00020951,2]
[315907264,1709266234297,-2495.22,0.00020966,2]
[315907265,1709266234306,-1000.0,0.00021,2]
[315907266,1709266234315,-2511.35,0.00021053,2]
[315907267,1709266234325,-6263.5569,0.000211,2]
[315907268,1709266234334,-1748.0066,0.000211,2]
[315907269,1709266234343,-11692.5953,0.000211,2]
[315907270,1709266234352,-294.6284,0.000211,2]
[315907271,1709266234362,-2500.0,0.000211,2]
[315907272,1709266234371,-1739.0116712,0.000211,2]
[315907273,1709266234380,-39592.3351,0.000211,2]
[315907274,1709266234389,-449.78,0.0002119,3]
[315907275,1709266234400,-180.35446887,0.00021198,2]
[315907276,1709266234409,-526.48188274,0.00021198,2]
[315907277,1709266234419,-504.24185374,0.00021198,2]
[315907278,1709266234428,-232.33325942,0.00021198,2]
[315907279,1709266234437,-409.94438271,0.00021198,2]
[315907280,1709266234446,-484.27621455,0.00021198,2]
[315907281,1709266234457,-1006.3572,0.00021199,2]
[315907282,1709266234466,-6863.7763,0.000212,2]
[315907283,1709266234475,-58691.57078304,0.000212,2]
[315907284,1709266234496,-1378.26762468,0.000212,2]
[315907285,1709266234531,-184930.16159228,0.000212,2]
[315907286,1709266234540,-39766.1834,0.000212,2]
[315907287,1709266234549,-1739.01167117,0.00021242,2]
[315907288,1709266234559,-150.0,0.00021243,2]
[315907289,1709266234568,-180.23657328,0.0002129,2]
[315907290,1709266234577,-2515.23,0.00021298,2]
[315907291,1709266234586,-400.18635344,0.00021299,2]
[315907292,1709266234595,-6846.24577746,0.000213,2]
[315907293,1709266234607,-1216.73005915,0.000213,2]
[315907299,1709266237993,-423.02975116,0.00014063,2]
[315907300,1709266238002,-82500.82217307,0.000213,2]
[315907301,1709266238014,-918.71660026,0.000213,2]
[315907302,1709266238051,-5386.25895199,0.000213,2]
[315907303,1709266238109,-1822.685865,0.000213,2]
[315907304,1709266238121,-101308.54057307,0.000213,2]
[315907305,1709266238131,-217.05043381,0.000213,2]
[315907306,1709266238140,-159.82,0.00021313,10]
[315907307,1709266238149,-2502.41,0.00021335,2]
[315907308,1709266238159,-2511.24,0.00021338,2]
[315907309,1709266238168,-204.73380643,0.0002137,2]
[315907310,1709266238177,-4990.18398372,0.0002137,2]
[315907311,1709266238186,-362.49580573,0.00021379,2]
[315907312,1709266238196,-297.70796566,0.00021379,2]
[315907313,1709266238207,-500.0,0.00021379,2]
[315907314,1709266238215,-535.84028719,0.00021379,2]
[315907315,1709266238225,-169.78765482,0.00021379,2]
[315907316,1709266238234,-178.72970859,0.00021379,2]
[315907317,1709266238243,-224.00121142,0.00021379,2]
[315907318,1709266238253,-2115896.21549197,0.0002138,4]
[315907319,1709266238262,-2658210.9743531,0.0002138,2]
[315907320,1709266238273,-241918.71344494,0.0002138,2]
[315907321,1709266238285,-777401.39145024,0.0002138,2]
[315907322,1709266238319,-8008.68090001,0.0002138,2]
[315907325,1709266238359,-432.16023264,0.0002138,2]
[315907340,1709266240700,-155.0,0.00014063,2]
[315907341,1709266240710,-108.74988758,0.0002118,2]
[315907342,1709266240722,-1215.42,0.0002118,2]
[315907344,1709266243048,-681.83583395,0.0002118,2]
[315907345,1709266243109,-494.33920324,0.0002118,2]
[315907346,1709266243166,-1222.29370824,0.0002118,2]
[315907347,1709266243179,-687.37014623,0.0002118,2]
[315907348,1709266243191,-12134.78985091,0.0002118,2]
[315907349,1709266243200,-153.56,0.0002119,2]
[315907350,1709266243212,-153.56,0.0002129,2]
[315907351,1709266243222,-153.56,0.0002137,2]
[315907352,1709266243231,-153.56,0.0002137,2]
[315907353,1709266243240,-153.56,0.0002137,2]
[315907354,1709266243249,-153.56,0.0002137,2]
[315907355,1709266243258,-153.56,0.0002137,2]
[315907356,1709266243267,-153.56,0.0002137,2]
[315907357,1709266243276,-153.56,0.0002137,2]
[315907358,1709266243286,-204.73380643,0.0002137,2]
[315907359,1709266243295,-4990.18398372,0.0002137,2]
[315907360,1709266243304,-288562.26370697,0.0002138,2]
[315907361,1709266244350,-1743.33662256,0.0002138,2]
[315907362,1709266245036,-1240.71788689,0.0002138,2]
[315907371,1709266246065,-775.25230045,0.00021283,2]
[315907372,1709266246077,-59978.9720535,0.0002138,2]
[315907373,1709266246178,-27090.01990321,0.0002138,2]
[315907374,1709266246190,-8358.90322,0.0002138,2]
[315907375,1709266246250,-16732.51146152,0.0002138,2]
[315907376,1709266246262,-405880.64523494,0.0002138,2]
[315907377,1709266246310,-814.43,0.0002138,2]
[315907378,1709266246369,-2733.3795,0.0002138,2]
[315907379,1709266246381,-76954.21643926,0.0002138,2]
[315907380,1709266246393,-804.67360027,0.0002138,2]
[315907383,1709267097751,-151.0,0.00024908,30]
[315907384,1709267097989,-62107.04231643,0.000289,30]
[315907385,1709267098050,-38517.40165992,0.0003,30]
[315907386,1709267098072,-567.18364401,0.0003,30]
[315907387,1709267132829,567.18364401,0.0003,30]
[315907388,1709267142319,258685.95166844,0.000289,30]
[315907389,1709267144274,38517.40165992,0.0003,30]
[315907390,1709267150914,559.90744735,0.0003,30]
[315907391,1709267158250,101927.43454828,0.000289,30]
[315907392,1709267164486,18784.93609636,0.0003,30]
[315907395,1709267432232,-161.9372908,0.00012268,2]
[315907396,1709267432243,-3504.9285849,0.00012362,2]
[315907403,1709267438231,-310.24010705,0.00012362,2]
[315907404,1709267438289,-361.86276607,0.00012362,2]
[315907405,1709267438299,-317.19801663,0.00012363,2]
[315907406,1709267438311,-740.52619541,0.00012363,2]
[315907407,1709267438320,-202.0,0.00012368,2]
[315907408,1709267438329,-202.0,0.0001517,5]
[315907409,1709267438338,-161.93729079,0.00015272,2]
[315907410,1709267438347,-200.69,0.00017203,2]
[315907411,1709267438356,-202.0,0.00017972,8]
[315907412,1709267438365,-3.20107607,0.00018276,2]
[315907413,1709267438433,-158.73621472,0.00018276,2]
[315907414,1709267438442,-175.18,0.00019094,10]
[315907415,1709267438632,-360.0,0.00019104,2]
[315907416,1709267438641,-34936.38757734,0.00019105,2]
[315907417,1709267438651,-200.0,0.00019106,2]
[315907418,1709267438660,-211.18,0.00019108,2]
[315907419,1709267438669,-150.0,0.00019116,2]
[315907420,1709267438678,-150.0,0.00019116,2]
[315907421,1709267438688,-175.05,0.00019118,2]
[315907422,1709267438697,-4721.23,0.00019118,2]
[315907423,1709267438706,-499.99,0.00019141,2]
[315907424,1709267438715,-5630.72,0.00019143,2]
[315907425,1709267438725,-2459.63,0.00019144,2]
[315907426,1709267438734,-200.0,0.00019145,2]
[315907428,1709267438743,-250.0,0.00019178,2]
[315907429,1709267438753,-500.0,0.00019178,2]
[315907430,1709267438762,-159.08,0.0001919,2]
[315907431,1709267438771,-173.14,0.00019264,2]
[315907432,1709267438780,-640.0,0.00019319,2]
[315907433,1709267438790,-200.69,0.00019467,2]
[315907434,1709267438798,-173.14,0.00019515,2]
[315907435,1709267438808,-175.18,0.00019717,10]
[315907436,1709267438818,-173.14,0.00019766,2]
[315907437,1709267438828,-173.13,0.00019854,2]
[315907438,1709267438840,-2750.0,0.0002,3]
[315907439,1709267438849,-173.14,0.00020017,2]
[315907440,1709267438860,-2519.72,0.00020103,2]
[315907441,1709267438869,-173.14,0.00020268,2]
[315907442,1709267438879,-2577.93,0.00020334,2]
[315907443,1709267438889,-175.18,0.00020341,10]
[315907444,1709267438898,-244.01749361,0.0002038,2]
[315907445,1709267438908,-248.46561555,0.0002038,2]
[315907446,1709267438917,-150.46946535,0.0002038,2]
[315907447,1709267438927,-178.0,0.0002038,2]
[315907448,1709267438936,-151.26219013,0.0002038,2]
[315907449,1709267438946,-500.0,0.0002038,2]
[315907450,1709267438956,-259.9,0.0002038,2]
[315907451,1709267438966,-259.9,0.00020517,2]
[315907452,1709267438975,-6466.8912,0.00020651,2]
[315907453,1709267438985,-1471.219,0.00020651,2]
[315907454,1709267438994,-278.53475849,0.00020654,2]
[315907455,1709267439006,-1000.0,0.00020687,2]
[315907456,1709267439017,-2562.69,0.00020701,2]
[315907457,1709267439028,-202.0,0.00020774,12]
[315907458,1709267439038,-404.12,0.00020795,2]
[315907459,1709267439047,-919.42,0.00020795,2]
[315907460,1709267439057,-1000.0,0.00020886,2]
[315907461,1709267439067,-2264.457,0.000209,2]
[315907462,1709267439076,-334.4805,0.000209,2]
[315907463,1709267439086,-956.2879,0.000209,2]
[315907464,1709267439095,-2495.58696508,0.000209,2]
[315907465,1709267439104,-178.0,0.00020928,2]
[315907466,1709267439113,-819.21437792,0.00020928,2]
[315907467,1709267439122,-151.72,0.00020948,2]
[315907468,1709267439131,-150.0,0.00020948,2]
[315907469,1709267439140,-150.0,0.00020948,2]
[315907470,1709267439150,-150.0,0.00020948,2]
[315907471,1709267439159,-150.0,0.00020948,2]
[315907472,1709267439168,-150.0,0.00020948,2]
[315907473,1709267439177,-150.0,0.00020948,2]
[315907474,1709267439187,-150.0,0.00020952,2]
[315907475,1709267439196,-175.18,0.00020965,10]
[315907476,1709267439205,-193.08,0.00020971,2]
[315907477,1709267439214,-200000.0,0.00020986,2]
[315907478,1709267439228,-1000.0,0.00020987,2]
[315907479,1709267439237,-423.80865424,0.00020988,2]
[315907480,1709267439246,-155.14950808,0.00020998,2]